[Event "Moja Open Prestige 2022"]
[Site "Kimberley"]
[Date "2022.03.20"]
[Round "2.6"]
[White "Vorster, Stephanus"]
[Black "Mthunzi, Clive"]
[Result "1-0"]
[ECO "B12"]
[WhiteElo "1600"]
[BlackElo "1888"]
[Annotator "NA RC"]
[PlyCount "71"]
[EventDate "2022.03.19"]
[EventType "swiss"]
[EventCountry "RSA"]
[SourceTitle "playchess.com"]
[Source "ChessBase"]
[SourceQuality "1"]
[TimeControl "5400+30"]

1. e4 {[%emt 1:31:00]} c6 {[%emt 1:31:00]} 2. d4 {[%emt 0:00:30]} d5 {[%emt 0:00:30]} 3. e5 {[%emt 0:00:30]} Bf5 {[%emt 0:00:30]} 4. Nc3 {[%emt 0:00:30]} e6 {[%emt 0:00:30]} 5. g4 {[%emt 0:00:30]} Bg6 {[%emt 0:00:30]} 6. Nge2 {[%emt 0:00:30]} h6 {[%emt 0:00:30]} 7. h4 {[%emt 0:00:30]} c5 {[%emt 0:00:30]} 8. Be3 {[%emt 0:00:30]} Nc6 {[%emt 0:00:30]} 9. dxc5 {[%emt 0:00:30]} Nxe5 {[%emt 0:00:30]} 10. Nf4 {[%emt 0:00:30]} Bh7 {[%emt 0:00:30]} 11. Bb5+ {[%emt 0:00:30]} Nc6 {[%emt 0:00:30]} 12. Qe2 {[%emt 0:00:30]} Nf6 {[%emt 0:00:30]} 13. O-O-O {[%emt 0:00:30]} Be7 {[%emt 0:00:30]} 14. g5 {[%emt 0:00:30]} Nd7 {[%emt 0:00:30]} 15. gxh6 {[%emt 0:00:30]} g6 {[%emt 0:00:30]} 16. Bxc6 {[%emt 0:00:30]} bxc6 {[%emt 0:00:30]} 17. Bd4 {[%emt 0:00:30]} O-O {[%emt 0:00:30]} 18. Bg7 {[%emt 0:00:30]} e5 {[%emt 0:00:30]} 19. Nfxd5 {[%emt 0:00:30]} cxd5 {[%emt 0:00:30]} 20. Nxd5 {[%emt 0:00:30]} Rc8 {[%emt 0:00:30]} 21. Qb5 {[%emt 0:00:30]} Rxc5 {[%emt 0:00:30]} 22. Nxe7+ {[%emt 0:00:30]} Qxe7 23. Rxd7 {[%emt 0:00:30]} Rxb5 {[%emt 0:01:00]} 24. Rxe7 {[%emt 0:00:30]} Rc8 {[%emt 0:00:30]} 25. Rxe5 {[%emt 0:00:30]} Rxe5 {[%emt 0:00:30]} 26. Bxe5 {[%emt 0:00:30]} g5 {[%emt 0:00:30]} 27. c3 {[%emt 0:00:30]} g4 {[%emt 0:00:30]} 28. Rg1 {[%emt 0:00:30]} Bf5 {[%emt 0:00:30]} 29. f3 {[%emt 0:00:30]} Be6 {[%emt 0:00:30]} 30. fxg4 {[%emt 0:00:30]} Bxa2 {[%emt 0:00:30]} 31. g5 {[%emt 0:00:30]} Kh7 {[%emt 0:00:30]} 32. h5 {[%emt 0:00:30]} a6 {[%emt 0:00:30]} 33. Bg7 {[%emt 0:00:30]} Rc5 {[%emt 0:00:30]} 34. g6+ {[%emt 0:00:30]} fxg6 {[%emt 0:00:30]} 35. hxg6+ {[%emt 0:00:30]} Kg8 36. Bd4 {[%emt 0:00:30]} 1-0

[Event "Moja Open Prestige 2022"]
[Site "Kimberley"]
[Date "2022.03.20"]
[Round "2.7"]
[White "Mankga, Thabang"]
[Black "Karsten, Jan"]
[Result "0-1"]
[ECO "A96"]
[WhiteElo "1463"]
[BlackElo "1679"]
[Annotator "NA RC"]
[PlyCount "130"]
[EventDate "2022.03.19"]
[EventType "swiss"]
[EventCountry "RSA"]
[SourceTitle "playchess.com"]
[Source "ChessBase"]
[SourceQuality "1"]
[TimeControl "5400+30"]

1. d4 {[%emt 1:31:00]} e6 {[%emt 1:31:00]} 2. c4 {[%emt 0:00:30]} f5 {[%emt 0:00:30]} 3. Nf3 {[%emt 0:00:30]} Nf6 {[%emt 0:00:30]} 4. g3 {[%emt 0:00:30]} Be7 {[%emt 0:00:30]} 5. Bg2 {[%emt 0:00:30]} O-O {[%emt 0:00:30]} 6. O-O {[%emt 0:00:30]} d6 {[%emt 0:00:30]} 7. Nc3 {[%emt 0:00:30]} Ne4 {[%emt 0:00:30]} 8. Qc2 {[%emt 0:00:30]} Nxc3 {[%emt 0:00:30]} 9. Qxc3 {[%emt 0:00:30]} a5 {[%emt 0:00:30]} 10. Rb1 {[%emt 0:00:30]} Nc6 {[%emt 0:00:30]} 11. a3 {[%emt 0:00:30]} a4 {[%emt 0:00:30]} 12. Re1 {[%emt 0:00:30]} Bf6 {[%emt 0:00:30]} 13. e4 {[%emt 0:00:30]} e5 {[%emt 0:00:30]} 14. d5 {[%emt 0:00:30]} Na5 {[%emt 0:00:30]} 15. Nd2 {[%emt 0:00:30]} f4 {[%emt 0:00:30]} 16. b4 {[%emt 0:00:30]} axb3 {[%emt 0:00:30]} 17. Nxb3 {[%emt 0:00:30]} Nxb3 {[%emt 0:00:30]} 18. Qxb3 {[%emt 0:00:30]} Bg5 {[%emt 0:00:30]} 19. f3 {[%emt 0:00:30]} fxg3 {[%emt 0:00:30]} 20. hxg3 {[%emt 0:00:30]} Bxc1 {[%emt 0:00:30]} 21. Rbxc1 {[%emt 0:00:30]} Qg5 {[%emt 0:00:30]} 22. Kf2 {[%emt 0:00:30]} b6 {[%emt 0:00:30]} 23. Qe3 {[%emt 0:00:30]} Qxe3+ {[%emt 0:00:30]} 24. Rxe3 {[%emt 0:00:30]} Bd7 {[%emt 0:00:30]} 25. Bf1 {[%emt 0:00:30]} g5 {[%emt 0:00:30]} 26. Be2 {[%emt 0:00:30]} Kg7 {[%emt 0:00:30]} 27. Kg2 {[%emt 0:00:30]} Kg6 {[%emt 0:00:30]} 28. Rh1 {[%emt 0:00:30]} Rf6 {[%emt 0:00:30]} 29. g4 {[%emt 0:00:30]} Rff8 {[%emt 0:00:30]} 30. Kg3 {[%emt 0:00:30]} Rh8 {[%emt 0:00:30]} 31. Rc3 {[%emt 0:00:30]} h6 {[%emt 0:00:30]} 32. Re3 {[%emt 0:00:30]} Rh7 {[%emt 0:00:30]} 33. Rc3 {[%emt 0:00:30]} Kf6 {[%emt 0:00:30]} 34. Kg2 {[%emt 0:00:30]} Ke7 {[%emt 0:00:30]} 35. Kg3 {[%emt 0:00:30]} Rah8 {[%emt 0:00:30]} 36. Rcc1 {[%emt 0:00:30]} Kf6 {[%emt 0:00:30]} 37. Rh2 {[%emt 0:00:30]} h5 {[%emt 0:00:30]} 38. gxh5 {[%emt 0:00:30]} Rxh5 {[%emt 0:00:30]} 39. Rxh5 {[%emt 0:00:30]} Rxh5 {[%emt 0:00:30]} 40. Ra1 {[%emt 0:00:30]} Ba4 {[%emt 0:00:30]} 41. Kg2 {[%emt 0:00:30]} Rh8 {[%emt 0:00:30]} 42. Rh1 {[%emt 0:00:30]} Rxh1 {[%emt 0:00:30]} 43. Kxh1 {[%emt 0:00:30]} g4 {[%emt 0:00:30]} 44. Kg2 {[%emt 0:00:30]} Bc2 {[%emt 0:00:30]} 45. Kg3 {[%emt 0:00:30]} Kg5 {[%emt 0:00:30]} 46. Bf1 {[%emt 0:00:30]} gxf3 {[%emt 0:00:30]} 47. Kxf3 {[%emt 0:00:30]} Kh4 {[%emt 0:00:30]} 48. Ke3 {[%emt 0:00:30]} Kg3 {[%emt 0:00:30]} 49. Be2 {[%emt 0:00:30]} Ba4 {[%emt 0:00:30]} 50. Bf1 {[%emt 0:00:30]} Bd1 {[%emt 0:00:30]} 51. Bd3 {[%emt 0:00:30]} Kg2 {[%emt 0:00:30]} 52. Kd2 {[%emt 0:00:30]} Bh5 {[%emt 0:00:30]} 53. Ke3 {[%emt 0:00:30]} Bg4 {[%emt 0:00:30]} 54. Be2 {[%emt 0:00:30]} Bxe2 {[%emt 0:00:30]} 55. Kxe2 {[%emt 0:00:30]} Kg3 {[%emt 0:00:30]} 56. Ke3 {[%emt 0:00:30]} Kg4 {[%emt 0:00:30]} 57. a4 {[%emt 0:00:30]} Kg3 {[%emt 0:00:30]} 58. Ke2 {[%emt 0:00:30]} Kf4 {[%emt 0:00:30]} 59. Kd3 {[%emt 0:00:30]} Kf3 {[%emt 0:00:30]} 60. c5 {[%emt 0:00:30]} dxc5 {[%emt 0:00:30]} 61. a5 {[%emt 0:00:30]} bxa5 {[%emt 0:00:30]} 62. Kc4 {[%emt 0:00:30]} Kxe4 {[%emt 0:00:30]} 63. Kxc5 {[%emt 0:00:30]} a4 {[%emt 0:00:30]} 64. Kc6 {[%emt 0:00:30]} a3 {[%emt 0:00:30]} 65. Kxc7 {[%emt 0:00:30]} Kxd5 {[%emt 0:00:30]} 0-1

[Event "Moja Open Prestige 2022"]
[Site "Kimberley"]
[Date "2022.03.20"]
[Round "2.8"]
[White "LEFYEDI, THATEGO"]
[Black "Makhosonke, Kuhlase Matthiolus"]
[Result "0-1"]
[ECO "E11"]
[WhiteElo "1461"]
[BlackElo "1787"]
[Annotator "NA RC"]
[PlyCount "120"]
[EventDate "2022.03.19"]
[EventType "swiss"]
[EventCountry "RSA"]
[SourceTitle "playchess.com"]
[Source "ChessBase"]
[SourceQuality "1"]
[TimeControl "5400+30"]

1. d4 {[%emt 1:31:00]} Nf6 {[%emt 1:31:00]} 2. c4 {[%emt 0:00:30]} e6 {[%emt 0:00:30]} 3. Nf3 {[%emt 0:00:30]} Bb4+ {[%emt 0:00:30]} 4. Bd2 {[%emt 0:00:30]} Be7 {[%emt 0:00:30]} 5. Nc3 {[%emt 0:00:30]} d5 {[%emt 0:00:30]} 6. g3 {[%emt 0:00:30]} dxc4 {[%emt 0:00:30]} 7. Qa4+ {[%emt 0:00:30]} Nbd7 {[%emt 0:00:30]} 8. Qxc4 {[%emt 0:00:30]} b6 {[%emt 0:00:30]} 9. Bg2 {[%emt 0:00:30]} Bb7 {[%emt 0:00:30]} 10. Bf4 {[%emt 0:00:30]} c5 {[%emt 0:00:30]} 11. Nb5 {[%emt 0:00:30]} O-O {[%emt 0:00:30]} 12. Bc7 {[%emt 0:00:30]} Qc8 {[%emt 0:00:30]} 13. Bd6 {[%emt 0:00:30]} Bd5 {[%emt 0:00:30]} 14. Qc1 {[%emt 0:00:30]} Bxd6 {[%emt 0:00:30]} 15. Nxd6 {[%emt 0:00:30]} Qc6 {[%emt 0:00:30]} 16. Nc4 {[%emt 0:00:30]} cxd4 {[%emt 0:00:30]} 17. Ncd2 {[%emt 0:00:30]} Rac8 {[%emt 0:00:30]} 18. O-O {[%emt 0:00:30]} e5 {[%emt 0:00:30]} 19. Bh3 {[%emt 0:00:30]} Rc7 {[%emt 0:00:30]} 20. Qd1 {[%emt 0:00:30]} Qc2 {[%emt 0:00:30]} 21. b3 {[%emt 0:00:30]} g6 {[%emt 0:00:30]} 22. g4 {[%emt 0:00:30]} Be6 {[%emt 0:00:30]} 23. Qxc2 {[%emt 0:00:30]} Rxc2 {[%emt 0:00:30]} 24. Rfc1 {[%emt 0:00:30]} Rfc8 {[%emt 0:00:30]} 25. Rxc2 {[%emt 0:00:30]} Rxc2 {[%emt 0:00:30]} 26. g5 {[%emt 0:00:30]} Bxh3 {[%emt 0:00:30]} 27. gxf6 {[%emt 0:00:30]} Bf5 {[%emt 0:00:30]} 28. Nc4 {[%emt 0:00:30]} Rxe2 {[%emt 0:00:30]} 29. Re1 {[%emt 0:00:30]} Rxe1+ {[%emt 0:00:30]} 30. Nxe1 {[%emt 0:00:30]} b5 {[%emt 0:00:30]} 31. Nd6 {[%emt 0:00:30]} a6 {[%emt 0:00:30]} 32. Nf3 {[%emt 0:00:30]} Bg4 {[%emt 0:00:30]} 33. Ng5 {[%emt 0:00:30]} d3 {[%emt 0:00:30]} 34. Nge4 {[%emt 0:00:30]} Bf5 {[%emt 0:00:30]} 35. Kf1 {[%emt 0:00:30]} Nb6 {[%emt 0:00:30]} 36. Nxf5 {[%emt 0:00:30]} gxf5 {[%emt 0:00:30]} 37. Nc5 {[%emt 0:00:30]} e4 {[%emt 0:00:30]} 38. Nxa6 {[%emt 0:00:30]} Nd5 {[%emt 0:00:30]} 39. a4 {[%emt 0:00:30]} bxa4 {[%emt 0:00:30]} 40. bxa4 {[%emt 0:00:30]} Nc3 {[%emt 0:00:30]} 41. Ke1 {[%emt 0:00:30]} Nxa4 {[%emt 0:00:30]} 42. Nb8 {[%emt 0:00:30]} h5 {[%emt 0:00:30]} 43. Nc6 {[%emt 0:00:30]} Kh7 {[%emt 0:00:30]} 44. Ne7 {[%emt 0:00:30]} Nc5 {[%emt 0:00:30]} 45. Nxf5 {[%emt 0:00:30]} Kg6 {[%emt 0:00:30]} 46. Ne3 {[%emt 0:00:30]} Kxf6 {[%emt 0:00:30]} 47. Kd2 {[%emt 0:00:30]} Ke5 {[%emt 0:00:30]} 48. Ng2 {[%emt 0:00:30]} f5 {[%emt 0:00:30]} 49. Ne1 {[%emt 0:00:30]} Kf4 {[%emt 0:00:30]} 50. h4 {[%emt 0:00:30]} Kg4 {[%emt 0:00:30]} 51. Ng2 {[%emt 0:00:30]} f4 {[%emt 0:00:30]} 52. Ne1 {[%emt 0:00:30]} Kxh4 {[%emt 0:00:30]} 53. f3 {[%emt 0:00:30]} e3+ {[%emt 0:00:30]} 54. Kd1 {[%emt 0:00:30]} Kg3 {[%emt 0:00:30]} 55. Nxd3 {[%emt 0:00:30]} Nxd3 {[%emt 0:00:30]} 56. Ke2 {[%emt 0:00:30]} Ne5 {[%emt 0:00:30]} 57. Ke1 {[%emt 0:00:30]} Kxf3 {[%emt 0:00:30]} 58. Kf1 {[%emt 0:00:30]} e2+ {[%emt 0:00:30]} 59. Ke1 {[%emt 0:00:30]} Nd3+ {[%emt 0:00:30]} 60. Kd2 {[%emt 0:00:30]} e1=Q+ {[%emt 0:00:30]} 0-1

[Event "Moja Open Prestige 2022"]
[Site "Kimberley"]
[Date "2022.03.20"]
[Round "3.6"]
[White "Makhosonke, Kuhlase Matthiolus"]
[Black "Vorster, Stephanus"]
[Result "1-0"]
[ECO "D20"]
[WhiteElo "1787"]
[BlackElo "1600"]
[Annotator "NA RC"]
[PlyCount "91"]
[EventDate "2022.03.19"]
[EventType "swiss"]
[EventCountry "RSA"]
[SourceTitle "playchess.com"]
[Source "ChessBase"]
[SourceQuality "1"]
[TimeControl "5400+30"]

1. d4 {[%emt 1:31:00]} d5 {[%emt 1:31:00]} 2. c4 {[%emt 0:00:30]} dxc4 {[%emt 0:00:30]} 3. Nc3 {[%emt 0:00:30]} c5 {[%emt 0:00:30]} 4. d5 {[%emt 0:00:30]} Nf6 {[%emt 0:00:30]} 5. Bg5 {[%emt 0:00:30]} Nbd7 {[%emt 0:00:30]} 6. Qa4 {[%emt 0:00:30]} Qb6 {[%emt 0:00:30]} 7. Rb1 {[%emt 0:00:30]} Qb4 {[%emt 0:00:30]} 8. Bxf6 {[%emt 0:00:30]} Qxa4 {[%emt 0:00:30]} 9. Nxa4 {[%emt 0:00:30]} exf6 {[%emt 0:00:30]} 10. Nc3 {[%emt 0:00:30]} a6 {[%emt 0:00:30]} 11. a4 {[%emt 0:00:30]} Rb8 {[%emt 0:00:30]} 12. a5 {[%emt 0:00:30]} Bd6 {[%emt 0:00:30]} 13. e4 {[%emt 0:00:30]} Bc7 {[%emt 0:00:30]} 14. Ra1 {[%emt 0:00:30]} b5 {[%emt 0:00:30]} 15. axb6 {[%emt 0:00:30]} Nxb6 {[%emt 0:00:30]} 16. Nf3 {[%emt 0:00:30]} Kd7 {[%emt 0:00:30]} 17. Nd2 {[%emt 0:00:30]} Re8 {[%emt 0:00:30]} 18. Kd1 {[%emt 0:00:30]} Bf4 {[%emt 0:00:30]} 19. g3 {[%emt 0:00:30]} Bxd2 {[%emt 0:00:30]} 20. Kxd2 {[%emt 0:00:30]} Kd6 {[%emt 0:00:30]} 21. f4 {[%emt 0:00:30]} g5 {[%emt 0:00:30]} 22. Be2 {[%emt 0:00:30]} Rg8 {[%emt 0:00:30]} 23. f5 {[%emt 0:00:30]} Rh8 {[%emt 0:00:30]} 24. h4 {[%emt 0:00:30]} Ke5 {[%emt 0:00:30]} 25. hxg5 {[%emt 0:00:30]} fxg5 {[%emt 0:00:30]} 26. Rh5 {[%emt 0:00:30]} f6 {[%emt 0:00:30]} 27. Kc2 {[%emt 0:00:30]} Ra8 {[%emt 0:00:30]} 28. Ra5 {[%emt 0:00:30]} Kd4 {[%emt 0:00:30]} 29. Rh1 {[%emt 0:00:30]} Nd7 {[%emt 0:00:30]} 30. Rd1+ {[%emt 0:00:30]} Ke5 {[%emt 0:00:30]} 31. Bxc4 {[%emt 0:00:30]} h5 {[%emt 0:00:30]} 32. Rh1 {[%emt 0:00:30]} h4 {[%emt 0:00:30]} 33. Raa1 {[%emt 0:00:30]} Bb7 {[%emt 0:00:30]} 34. g4 {[%emt 0:00:30]} Nb6 {[%emt 0:00:30]} 35. Kd3 {[%emt 0:00:30]} Rhc8 {[%emt 0:00:30]} 36. Ra3 {[%emt 0:00:30]} a5 {[%emt 0:00:30]} 37. Bb5 {[%emt 0:00:30]} Ra7 {[%emt 0:00:30]} 38. Rha1 {[%emt 0:00:30]} Rca8 {[%emt 0:00:30]} 39. Ke3 {[%emt 0:00:30]} Ba6 {[%emt 0:00:30]} 40. Rxa5 {[%emt 0:00:30]} Bxb5 {[%emt 0:00:30]} 41. Rxa7 {[%emt 0:00:30]} Rxa7 {[%emt 0:00:30]} 42. Rxa7 {[%emt 0:00:30]} Bd7 {[%emt 0:00:30]} 43. b3 {[%emt 0:00:30]} Kd6 {[%emt 0:00:30]} 44. Rb7 {[%emt 0:00:30]} Nc8 {[%emt 0:00:30]} 45. e5+ {[%emt 0:00:30]} fxe5 {[%emt 0:00:30]} 46. Ne4+ {[%emt 0:00:30]} 1-0

[Event "Moja Open Prestige 2022"]
[Site "Kimberley"]
[Date "2022.03.20"]
[Round "3.7"]
[White "Vorster, Tyrone"]
[Black "Mathebula, Xolani Cebo"]
[Result "0-1"]
[ECO "C56"]
[WhiteElo "1192"]
[BlackElo "1752"]
[Annotator "NA RC"]
[PlyCount "96"]
[EventDate "2022.03.19"]
[EventType "swiss"]
[EventCountry "RSA"]
[SourceTitle "playchess.com"]
[Source "ChessBase"]
[SourceQuality "1"]
[TimeControl "5400+30"]

1. e4 {[%emt 1:31:00]} e5 {[%emt 1:31:00]} 2. Bc4 {[%emt 0:00:30]} Nc6 {[%emt 0:00:30]} 3. Nf3 {[%emt 0:00:30]} Nf6 {[%emt 0:00:30]} 4. d4 {[%emt 0:00:30]} exd4 {[%emt 0:00:30]} 5. O-O {[%emt 0:00:30]} d6 {[%emt 0:00:30]} 6. Nxd4 {[%emt 0:00:30]} Ne5 {[%emt 0:00:30]} 7. Bb3 {[%emt 0:00:30]} Be7 {[%emt 0:00:30]} 8. f4 {[%emt 0:00:30]} Ng6 {[%emt 0:00:30]} 9. Nc3 {[%emt 0:00:30]} O-O {[%emt 0:00:30]} 10. h3 {[%emt 0:00:30]} Re8 {[%emt 0:00:30]} 11. g4 {[%emt 0:00:30]} Bf8 {[%emt 0:00:30]} 12. f5 {[%emt 0:00:30]} Ne5 {[%emt 0:00:30]} 13. g5 {[%emt 0:00:30]} Nfd7 {[%emt 0:00:30]} 14. Qh5 {[%emt 0:00:30]} Kh8 {[%emt 0:00:30]} 15. Rf4 {[%emt 0:00:30]} g6 {[%emt 0:00:30]} 16. fxg6 {[%emt 0:00:30]} fxg6 {[%emt 0:00:30]} 17. Qh4 {[%emt 0:00:30]} Nb6 {[%emt 0:00:30]} 18. Nf3 {[%emt 0:00:30]} Bg7 {[%emt 0:00:30]} 19. Be3 {[%emt 0:00:30]} c6 {[%emt 0:00:30]} 20. Rf1 {[%emt 0:00:30]} Be6 {[%emt 0:00:30]} 21. Bxe6 {[%emt 0:00:30]} Rxe6 {[%emt 0:00:30]} 22. Nxe5 {[%emt 0:00:30]} Rxe5 {[%emt 0:00:30]} 23. Rf7 {[%emt 0:00:30]} Re7 {[%emt 0:00:30]} 24. Rxg7 {[%emt 0:00:30]} Kxg7 {[%emt 0:00:30]} 25. Bd4+ {[%emt 0:00:30]} Kg8 {[%emt 0:00:30]} 26. Bf6 {[%emt 0:00:30]} Nc4 {[%emt 0:00:30]} 27. Bxe7 {[%emt 0:00:30]} Qxe7 {[%emt 0:00:30]} 28. b3 {[%emt 0:00:30]} Ne3 {[%emt 0:00:30]} 29. Rf2 {[%emt 0:00:30]} Qe5 {[%emt 0:00:30]} 30. Ne2 {[%emt 0:00:30]} Nxc2 {[%emt 0:00:30]} 31. Nf4 {[%emt 0:00:30]} Nd4 {[%emt 0:00:30]} 32. Nd3 {[%emt 0:00:30]} Qe7 {[%emt 0:00:30]} 33. Qf4 {[%emt 0:00:30]} Rf8 {[%emt 0:00:30]} 34. Qxf8+ {[%emt 0:00:30]} Qxf8 {[%emt 0:00:30]} 35. Rxf8+ {[%emt 0:00:30]} Kxf8 {[%emt 0:00:30]} 36. Kf2 {[%emt 0:00:30]} Ke7 {[%emt 0:00:30]} 37. Ke3 {[%emt 0:00:30]} Ne6 {[%emt 0:00:30]} 38. h4 {[%emt 0:00:30]} Nc5 {[%emt 0:00:30]} 39. Nf4 {[%emt 0:00:30]} Nd7 {[%emt 0:00:30]} 40. Kd4 {[%emt 0:00:30]} Ne5 {[%emt 0:00:30]} 41. Ke3 {[%emt 0:00:30]} a5 {[%emt 0:00:30]} 42. a4 {[%emt 0:00:30]} b5 {[%emt 0:00:30]} 43. Ne2 {[%emt 0:00:30]} bxa4 {[%emt 0:00:30]} 44. bxa4 {[%emt 0:00:30]} Nc4+ {[%emt 0:00:30]} 45. Kd4 {[%emt 0:00:30]} Nb6 {[%emt 0:00:30]} 46. Nc3 {[%emt 0:00:30]} Ke6 {[%emt 0:00:30]} 47. Kd3 {[%emt 0:00:30]} Ke5 {[%emt 0:00:30]} 48. Ke3 {[%emt 0:00:30]} d5 {[%emt 0:00:30]} 0-1

[Event "Moja Open Prestige 2022"]
[Site "Kimberley"]
[Date "2022.03.20"]
[Round "4.2"]
[White "Mathebula, Xolani Cebo"]
[Black "Mlahleki, Vusimuzi"]
[Result "1/2-1/2"]
[ECO "C55"]
[WhiteElo "1752"]
[BlackElo "1980"]
[Annotator "NA RC"]
[PlyCount "46"]
[EventDate "2022.03.19"]
[EventType "swiss"]
[EventCountry "RSA"]
[SourceTitle "playchess.com"]
[Source "ChessBase"]
[SourceQuality "1"]
[TimeControl "5400+30"]

1. e4 {[%emt 0:06:45]} e5 {[%emt 0:00:00]} 2. Nf3 {[%emt 0:00:21]} Nc6 {[%emt 0:00:48]} 3. Bc4 {[%emt 0:00:31]} Nf6 {[%emt 0:00:10]} 4. d3 {[%emt 0:00:08]} Be7 {[%emt 0:00:07]} 5. O-O {[%emt 0:00:13]} d6 {[%emt 0:00:03]} 6. c3 {[%emt 0:00:17]} O-O {[%emt 0:00:33]} 7. Re1 {[%emt 0:01:00]} Na5 {[%emt 0:00:44]} 8. Nbd2 {[%emt 0:00:51]} Nxc4 {[%emt 0:02:47]} 9. Nxc4 {[%emt 0:01:05]} Be6 {[%emt 0:00:25]} 10. Ne3 {[%emt 0:00:58]} h6 {[%emt 0:01:35]} 11. Bd2 {[%emt 0:01:06]} c6 {[%emt 0:01:15]} 12. Qc2 {[%emt 0:00:35]} Qc7 {[%emt 0:09:30]} 13. d4 {[%emt 0:07:29]} Rfe8 {[%emt 0:01:23]} 14. c4 {[%emt 0:11:03]} Bf8 {[%emt 0:12:27]} 15. Bc3 {[%emt 0:03:34]} Bd7 {[%emt 0:08:22]} 16. dxe5 {[%emt 0:04:58]} dxe5 {[%emt 0:02:30]} 17. Red1 {[%emt 0:01:29]} Bc5 {[%emt 0:06:43]} 18. Nf1 {[%emt 0:02:36]} a5 {[%emt 0:05:15]} 19. a3 {[%emt 0:07:17]} a4 {[%emt 0:01:58]} 20. Qe2 {[%emt 0:05:11]} Bc8 {[%emt 0:15:31]} 21. Rd3 {[%emt 0:00:56]} Nh5 {[%emt 0:07:33]} 22. g3 {[%emt 0:00:08]} Nf6 {[%emt 0:00:25]} 23. Kg2 {[%emt 0:01:09]} Nd7 {[%emt 0:03:14]} 1/2-1/2

[Event "Moja Open Prestige 2022"]
[Site "Kimberley"]
[Date "2022.03.20"]
[Round "4.3"]
[White "Karsten, Jan"]
[Black "Palmer, Reegan"]
[Result "*"]
[ECO "C12"]
[WhiteElo "1679"]
[BlackElo "1572"]
[Annotator "NA RC"]
[PlyCount "67"]
[EventDate "2022.03.19"]
[EventType "swiss"]
[EventCountry "RSA"]
[SourceTitle "playchess.com"]
[Source "ChessBase"]
[SourceQuality "1"]
[TimeControl "5400+30"]

1. e4 {[%emt 0:00:05]} e6 {[%emt 0:00:11]} 2. d4 {[%emt 0:00:07]} d5 {[%emt 0:00:07]} 3. Nc3 {[%emt 0:00:04]} Nf6 {[%emt 0:00:08]} 4. Bg5 {[%emt 0:00:07]} Bb4 {[%emt 0:01:21]} 5. e5 {[%emt 0:00:12]} h6 {[%emt 0:00:08]} 6. Bc1 {[%emt 0:00:05]} Ne4 {[%emt 0:01:44]} 7. Qg4 {[%emt 0:00:22]} Kf8 {[%emt 0:15:23]} 8. Nge2 {[%emt 0:01:11]} Nxc3 {[%emt 0:02:54]} 9. bxc3 {[%emt 0:01:02]} Be7 {[%emt 0:00:13]} 10. h4 {[%emt 0:00:30]} f5 {[%emt 0:08:33]} 11. Qg3 {[%emt 0:03:43]} Rg8 {[%emt 0:00:54]} 12. h5 {[%emt 0:03:46]} Bg5 {[%emt 0:01:20]} 13. Nf4 {[%emt 0:00:16]} Kf7 {[%emt 0:03:38]} 14. Ba3 {[%emt 0:03:23]} Nc6 {[%emt 0:01:33]} 15. Bd3 {[%emt 0:04:41]} Re8 {[%emt 0:01:05]} 16. Nh3 {[%emt 0:03:15]} Kg8 {[%emt 0:02:06]} 17. Nxg5 {[%emt 0:01:27]} Qxg5 {[%emt 0:01:21]} 18. Qf3 {[%emt 0:00:11]} Na5 {[%emt 0:56:51]} 19. Bc1 {[%emt 0:03:56]} Qe7 {[%emt 0:00:00]} 20. g4 {[%emt 0:00:56]} Qf7 {[%emt 0:00:00]} 21. g5 {[%emt 0:02:29]} hxg5 {[%emt 0:00:00]} 22. Bxg5 {[%emt 0:00:09]} Kh7 {[%emt 0:00:00]} 23. Kd2 {[%emt 0:02:10]} Nc4+ {[%emt 0:00:00]} 24. Bxc4 {[%emt 0:00:07]} dxc4 {[%emt 0:00:00]} 25. Rag1 {[%emt 0:00:18]} Bd7 {[%emt 0:00:00]} 26. Qf4 {[%emt 0:00:47]} Bc6 {[%emt 0:00:00]} 27. Rh3 {[%emt 0:00:56]} Rg8 {[%emt 0:00:00]} 28. Qg3 {[%emt 0:01:20]} Be8 {[%emt 0:00:00]} 29. Bf4 {[%emt 0:02:23]} Qd7 {[%emt 0:00:00]} 30. Qh4 {[%emt 0:02:43]} Qf7 {[%emt 0:00:00]} 31. Rg6 {[%emt 0:01:32]} Kh8 {[%emt 0:00:00]} 32. Rhg3 {[%emt 0:00:31]} Qd7 {[%emt 0:00:00]} 33. h6 {[%emt 0:02:12]} Bxg6 {[%emt 0:00:00]} 34. hxg7+ {[%emt 1:00:34]} *

[Event "Moja Open Prestige 2022"]
[Site "Kimberley"]
[Date "2022.03.20"]
[Round "4.8"]
[White "De Swardt, Eduan"]
[Black "Mthunzi, Clive"]
[Result "0-1"]
[ECO "B07"]
[WhiteElo "1207"]
[BlackElo "1888"]
[Annotator "NA RC"]
[PlyCount "82"]
[EventDate "2022.03.19"]
[EventType "swiss"]
[EventCountry "RSA"]
[SourceTitle "playchess.com"]
[Source "ChessBase"]
[SourceQuality "1"]
[TimeControl "5400+30"]

1. e4 {[%emt 1:31:00]} d6 {[%emt 1:31:00]} 2. d4 {[%emt 0:00:30]} Nf6 {[%emt 0:00:30]} 3. Nc3 {[%emt 0:00:30]} g6 {[%emt 0:00:30]} 4. Bf4 {[%emt 0:00:30]} Bg7 {[%emt 0:00:30]} 5. Qd2 {[%emt 0:00:30]} Nc6 {[%emt 0:00:30]} 6. Nf3 {[%emt 0:00:30]} Bg4 {[%emt 0:00:30]} 7. d5 {[%emt 0:00:30]} Nb8 {[%emt 0:00:30]} 8. Be2 {[%emt 0:00:30]} c6 {[%emt 0:00:30]} 9. Bh6 {[%emt 0:00:30]} Bxh6 {[%emt 0:00:30]} 10. Qxh6 {[%emt 0:00:30]} Qb6 {[%emt 0:00:30]} 11. Qd2 {[%emt 0:00:30]} Nbd7 {[%emt 0:00:30]} 12. h3 {[%emt 0:00:30]} Bxf3 {[%emt 0:00:30]} 13. Bxf3 {[%emt 0:00:30]} Ne5 {[%emt 0:00:30]} 14. Be2 {[%emt 0:00:30]} Qb4 {[%emt 0:00:30]} 15. f4 {[%emt 0:00:30]} Ned7 {[%emt 0:00:30]} 16. Bf3 {[%emt 0:00:30]} cxd5 {[%emt 0:00:30]} 17. Nxd5 {[%emt 0:00:30]} Nxd5 {[%emt 0:00:30]} 18. exd5 {[%emt 0:00:30]} Qxb2 {[%emt 0:00:30]} 19. O-O {[%emt 0:00:30]} Qb6+ {[%emt 0:00:30]} 20. Kh2 {[%emt 0:00:30]} O-O {[%emt 0:00:30]} 21. Rab1 {[%emt 0:00:30]} Qc7 {[%emt 0:00:30]} 22. Rfe1 {[%emt 0:00:30]} Nf6 {[%emt 0:00:30]} 23. Qe3 {[%emt 0:00:30]} Rfe8 {[%emt 0:00:30]} 24. Qb3 {[%emt 0:00:30]} b6 {[%emt 0:00:30]} 25. Be2 {[%emt 0:00:30]} a6 {[%emt 0:00:30]} 26. Qxb6 {[%emt 0:00:30]} Qxc2 {[%emt 0:00:30]} 27. Rb2 {[%emt 0:00:30]} Qc3 {[%emt 0:00:30]} 28. Rd1 {[%emt 0:00:30]} Rab8 {[%emt 0:00:30]} 29. Qxb8 {[%emt 0:00:30]} Rxb8 30. Rxb8+ {[%emt 0:00:30]} Kg7 31. Bxa6 {[%emt 0:00:30]} Qc2 {[%emt 0:01:30]} 32. Rbb1 {[%emt 0:00:30]} Qxa2 {[%emt 0:00:30]} 33. Bb7 {[%emt 0:00:30]} Nh5 {[%emt 0:00:30]} 34. Rb4 {[%emt 0:00:30]} Qf2 {[%emt 0:00:30]} 35. Rdd4 {[%emt 0:00:30]} Ng3 {[%emt 0:00:30]} 36. Rd3 {[%emt 0:00:30]} Ne2 {[%emt 0:00:30]} 37. Rb1 {[%emt 0:00:30]} Nxf4 {[%emt 0:00:30]} 38. Rg3 {[%emt 0:00:30]} h5 {[%emt 0:00:30]} 39. Ba6 {[%emt 0:00:30]} h4 {[%emt 0:00:30]} 40. Rg4 {[%emt 0:00:30]} f5 {[%emt 0:00:30]} 41. Rxf4 {[%emt 0:00:30]} Qxf4+ {[%emt 0:00:30]} 0-1